Workbook

Sheet 附件2
A1: 附件2
A2: 结算2022年度中央补助资金及预安排2023年中央财政城乡居民基本医疗保险补助资金明细表
S3: 单位：人、元
B4: 结算2022年中央补助资金 | O4: 预拨2023年中央补助资金 | R4: 应下达数合计 | S4: 此次下达数 | T4: 纳入2024年中央提前下达中考虑
A5: 地区 | B5: 一般居民 | K5: 中央所属高校大学生 | M5: 奖励补助资金 | N5: 小计 | O5: 应预拨 | P5: 已预拨(粤财社〔2022〕321号） | Q5: 此次下达
B6: 参保人数 | F6: 实际应拨付 | G6: 应拨付 | H6: 其中：扣减部分 | I6: 已预拨(含粤财社〔2021 〕305号、粤财社〔2022〕147号和粤财社〔2022〕330号） | J6: 此次结算 | K6: 参保人数 | L6: 此次结算
B7: 监管局审定2022年6月底参保人数 | C7: 中央核减省内参保人数 | D7: 中央核减跨省重复参保人数 | E7: 实际参保人数
A8: 栏次 | B8: 1栏 | C8: 2栏 | D8: 3栏 | E8: 4栏=1栏-2栏-3栏 | F8: 5栏=6栏-7栏 | G8: 6栏 | H8: 7栏 | I8: 8栏 | J8: 9栏=5栏-8栏 | K8: 10栏 | L8: 11栏 | M8: 12栏 | N8: 13栏=9栏+11栏+12栏 | O8: 14栏 | P8: 15栏 | Q8: 16栏=14栏-15栏 | R8: 17栏=13栏+16栏 | S8: 18栏 | T8: 19栏
A9: 江门市小计 | B9: 2343611 | C9: 0 | D9: 650 | E9: 2342961 | F9: 428761863 | G9: 428761863 | H9: 0 | I9: 434432484 | J9: =F9-I9 -> -5670621 | N9: =J9+L9+M9 -> -5670621 | O9: 449848512 | P9: 404760000 | Q9: =O9-P9 -> 45088512 | R9: =N9+Q9 -> 39417891 | S9: 30417891 | T9: 9000000
A10: 蓬江区 | B10: 211986 | C10: 0 | D10: 73 | E10: 211913 | F10: 38780079 | G10: 38780079 | H10: 0 | I10: 37145706 | J10: =F10-I10 -> 1634373 | N10: =J10+L10+M10 -> 1634373 | O10: 40687296 | P10: 33280000 | Q10: =O10-P10 -> 7407296 | R10: =N10+Q10 -> 9041669 | S10: =R10/39417891*30417891-1 -> 6977250 | T10: =R10/39417891*9000000+1 -> 2064419
A11: 江海区 | B11: 73956 | C11: 0 | D11: 32 | E11: 73924 | F11: 13528092 | G11: 13528092 | H11: 0 | I11: 13330452 | J11: 197640 | N11: 197640 | O11: 14193408 | P11: 11980000 | Q11: =O11-P11 -> 2213408 | R11: =N11+Q11 -> 2411048 | S11: =R11/39417891*30417891 -> 1860551 | T11: =R11/39417891*9000000 -> 550497
A12: 新会区 | B12: 403967 | C12: 0 | D12: 104 | E12: 403863 | F12: 73906929 | G12: 73906929 | H12: 0 | I12: 75132480 | J12: -1225551 | N12: -1225551 | O12: 77541696 | P12: 71210000 | Q12: 6331696 | R12: 5106145 | S12: 3940296 | T12: 1165849
A13: 台山市 | B13: 637338 | C13: 0 | D13: 173 | E13: 637165 | F13: 116601195 | G13: 116601195 | H13: 0 | I13: 119416650 | J13: -2815455 | N13: -2815455 | O13: 122335680 | P13: 111870000 | Q13: 10465680 | R13: 7650225 | S13: 5903505 | T13: 1746720
A14: 开平市 | B14: 436997 | C14: 0 | D14: 160 | E14: 436837 | F14: 79941171 | G14: 79941171 | H14: 0 | I14: 82347438 | J14: -2406267 | N14: -2406267 | O14: 83872704 | P14: 77820000 | Q14: 6052704 | R14: 3646437 | S14: 2813873 | T14: 832564
A15: 鹤山市 | B15: 225748 | C15: 0 | D15: 47 | E15: 225701 | F15: 41303283 | G15: 41303283 | H15: 0 | I15: 41262108 | J15: 41175 | N15: 41175 | O15: 43334592 | P15: 38400000 | Q15: 4934592 | R15: 4975767 | S15: 3839686 | T15: 1136081
A16: 恩平市 | B16: 353619 | C16: 0 | D16: 61 | E16: 353558 | F16: 64701114 | G16: 64701114 | H16: 0 | I16: 65797650 | J16: -1096536 | N16: -1096536 | O16: 67883136 | P16: 60200000 | Q16: 7683136 | R16: 6586600 | S16: 5082730 | T16: 1503870
